[Event "*** MasterClass Titled Tuesday Blitz"]
[Site "Chess.com"]
[Date "2017.08.01"]
[Round "3"]
[White "TregubovP"]
[Black "Sebastian"]
[Result "0-1"]
[WhiteElo "2476"]
[BlackElo "2789"]
[TimeControl "180+2"]
[EndTime "13:37:57 PDT"]
[Termination "Sebastian won by resignation"]

1. d4 {[%clk 0:03:01.9]} 1... Nf6 {[%clk 0:03:00.4]} 2. c4 {[%clk 0:03:02.6]}
2... g6 {[%clk 0:03:01.4]} 3. g3 {[%clk 0:03:03.2]} 3... c5 {[%clk 0:02:58.2]}
4. Nf3 {[%clk 0:03:02.6]} 4... Bg7 {[%clk 0:02:58.1]} 5. Bg2 {[%clk 0:03:02.9]}
5... Qa5+ {[%clk 0:02:59.7]} 6. Nc3 {[%clk 0:02:58.9]} 6... Nc6 {[%clk
0:02:58.1]} 7. O-O {[%clk 0:02:57.4]} 7... cxd4 {[%clk 0:02:58.2]} 8. Nxd4
{[%clk 0:02:58.3]} 8... O-O {[%clk 0:02:59.9]} 9. e3 {[%clk 0:02:44.2]} 9... d6
{[%clk 0:02:50.6]} 10. Nxc6 {[%clk 0:02:19.5]} 10... bxc6 {[%clk 0:02:50.9]} 11.
Bxc6 {[%clk 0:02:20.3]} 11... Rb8 {[%clk 0:02:50.6]} 12. Bg2 {[%clk 0:02:20.4]}
12... Ba6 {[%clk 0:02:34.1]} 13. Qe2 {[%clk 0:01:57.8]} 13... Rfc8 {[%clk
0:02:30.8]} 14. Nb5 {[%clk 0:01:56.8]} 14... Bxb5 {[%clk 0:02:10.3]} 15. cxb5
{[%clk 0:01:57.6]} 15... Rxb5 {[%clk 0:02:12]} 16. b3 {[%clk 0:01:42.3]} 16...
Rxb3 {[%clk 0:01:50.9]} 17. axb3 {[%clk 0:01:23.8]} 17... Qxa1 {[%clk
0:01:51.1]} 18. Bb2 {[%clk 0:01:25.4]} 18... Qa2 {[%clk 0:01:51.9]} 19. Ra1
{[%clk 0:01:26.9]} 19... Qxb3 {[%clk 0:01:49.9]} 20. Bd4 {[%clk 0:01:08.2]}
20... a5 {[%clk 0:00:57.2]} 21. Rxa5 {[%clk 0:01:04.8]} 21... Qb1+ {[%clk
0:00:53.2]} 22. Bf1 {[%clk 0:01:04.8]} 22... Ne4 {[%clk 0:00:52.9]} 23. Ra1
{[%clk 0:00:56.9]} 23... Qb3 {[%clk 0:00:44.5]} 24. Qa6 {[%clk 0:00:35.4]} 24...
Rf8 {[%clk 0:00:33.4]} 25. Bxg7 {[%clk 0:00:28.7]} 25... Kxg7 {[%clk 0:00:34.2]}
26. Qa7 {[%clk 0:00:30]} 26... Qb2 {[%clk 0:00:28.6]} 27. Ra2 {[%clk 0:00:29.2]}
27... Qf6 {[%clk 0:00:30.2]} 28. Bg2 {[%clk 0:00:25.5]} 28... Nc3 {[%clk
0:00:27.4]} 29. Rc2 {[%clk 0:00:24.4]} 29... Rc8 {[%clk 0:00:28.3]} 30. h3
{[%clk 0:00:23.7]} 30... Rc5 {[%clk 0:00:29.1]} 31. Kh2 {[%clk 0:00:20.7]} 31...
h5 {[%clk 0:00:28.7]} 32. h4 {[%clk 0:00:21.2]} 32... Ne4 {[%clk 0:00:27.5]} 33.
Rxc5 {[%clk 0:00:16.6]} 33... Nxc5 {[%clk 0:00:28.2]} 34. Qa2 {[%clk 0:00:15.5]}
34... Nd3 {[%clk 0:00:28.3]} 35. Kg1 {[%clk 0:00:15.2]} 35... Qc3 {[%clk
0:00:29]} 36. Qe2 {[%clk 0:00:15.5]} 36... e6 {[%clk 0:00:27.5]} 37. Kh2 {[%clk
0:00:15.9]} 37... d5 {[%clk 0:00:28.5]} 38. e4 {[%clk 0:00:16]} 38... d4 {[%clk
0:00:26.9]} 39. e5 {[%clk 0:00:17.3]} 39... Nc5 {[%clk 0:00:24.3]} 40. Qb5
{[%clk 0:00:14.9]} 40... d3 {[%clk 0:00:23.9]} 41. f4 {[%clk 0:00:11.5]} 41...
d2 {[%clk 0:00:24.8]} 42. Bf3 {[%clk 0:00:12.5]} 42... Qxf3 {[%clk 0:00:24.6]}
0-1

[Event "*** MasterClass Titled Tuesday Blitz"]
[Site "Chess.com"]
[Date "2017.08.01"]
[Round "3"]
[White "guilty93"]
[Black "TenisMaster"]
[Result "0-1"]
[WhiteElo "2380"]
[BlackElo "2679"]
[TimeControl "180+2"]
[EndTime "13:38:17 PDT"]
[Termination "TenisMaster won by resignation"]

1. e4 {[%clk 0:03:01.9]} 1... e5 {[%clk 0:02:58.1]} 2. Nf3 {[%clk 0:03:00.5]}
2... Nc6 {[%clk 0:02:59.6]} 3. Bb5 {[%clk 0:03:00.8]} 3... a6 {[%clk 0:03:00.8]}
4. Ba4 {[%clk 0:03:01.6]} 4... Nf6 {[%clk 0:03:02.3]} 5. O-O {[%clk 0:03:02.7]}
5... Bc5 {[%clk 0:03:03]} 6. d3 {[%clk 0:02:58.9]} 6... b5 {[%clk 0:03:02.4]} 7.
Bb3 {[%clk 0:02:59.7]} 7... d6 {[%clk 0:03:03.5]} 8. a3 {[%clk 0:03:00.3]} 8...
h6 {[%clk 0:03:02.8]} 9. Be3 {[%clk 0:02:59.3]} 9... O-O {[%clk 0:02:54.6]} 10.
Nc3 {[%clk 0:02:59.4]} 10... Bg4 {[%clk 0:02:39.8]} 11. h3 {[%clk 0:02:59.5]}
11... Bxf3 {[%clk 0:02:14.8]} 12. Qxf3 {[%clk 0:02:59.1]} 12... Nd4 {[%clk
0:02:16.5]} 13. Bxd4 {[%clk 0:02:59.1]} 13... Bxd4 {[%clk 0:02:18.4]} 14. Rab1
{[%clk 0:02:53.2]} 14... Bxc3 {[%clk 0:02:18.1]} 15. bxc3 {[%clk 0:02:53.5]}
15... c5 {[%clk 0:02:13.1]} 16. a4 {[%clk 0:02:43.8]} 16... Rc8 {[%clk
0:02:10.2]} 17. axb5 {[%clk 0:02:44.7]} 17... axb5 {[%clk 0:02:12.1]} 18. c4
{[%clk 0:02:45.7]} 18... b4 {[%clk 0:02:12.1]} 19. Ra1 {[%clk 0:02:46.1]} 19...
Ra8 {[%clk 0:02:11.9]} 20. Qe3 {[%clk 0:02:40.5]} 20... Qe7 {[%clk 0:02:10.7]}
21. g3 {[%clk 0:02:40.2]} 21... h5 {[%clk 0:01:47.8]} 22. Qg5 {[%clk 0:02:28.7]}
22... Qe6 {[%clk 0:01:46.7]} 23. Kg2 {[%clk 0:02:28.8]} 23... g6 {[%clk
0:01:45.9]} 24. Ba4 {[%clk 0:02:26.3]} 24... Nh7 {[%clk 0:01:41.5]} 25. Qe3
{[%clk 0:02:25.8]} 25... Kg7 {[%clk 0:01:38.1]} 26. Bc6 {[%clk 0:02:26.2]} 26...
Ra3 {[%clk 0:01:37.7]} 27. Bd5 {[%clk 0:02:26.3]} 27... Qe7 {[%clk 0:01:37]} 28.
f4 {[%clk 0:02:26.9]} 28... h4 {[%clk 0:01:32.7]} 29. fxe5 {[%clk 0:02:24.2]}
29... Qxe5 {[%clk 0:01:21.8]} 30. Rae1 {[%clk 0:02:05.7]} 30... hxg3 {[%clk
0:01:17.1]} 31. Rf3 {[%clk 0:02:05.6]} 31... Ra2 {[%clk 0:01:14.7]} 32. Re2
{[%clk 0:02:06.4]} 32... Nf6 {[%clk 0:01:12.6]} 33. Rxg3 {[%clk 0:02:01.3]}
33... Nxd5 {[%clk 0:01:05.4]} 34. cxd5 {[%clk 0:02:01.5]} 34... Qc3 {[%clk
0:01:06.9]} 35. Qf2 {[%clk 0:01:52.1]} 35... Rfa8 {[%clk 0:01:00.8]} 36. h4
{[%clk 0:01:45.2]} 36... b3 {[%clk 0:00:43.1]} 37. cxb3 {[%clk 0:01:44.6]} 37...
Qxb3 {[%clk 0:00:42.6]} 38. Kh3 {[%clk 0:01:43.2]} 38... Rxe2 {[%clk 0:00:37.7]}
39. Qxe2 {[%clk 0:01:43.1]} 39... Ra2 {[%clk 0:00:37.8]} 40. Qg4 {[%clk
0:01:41]} 40... Qc2 {[%clk 0:00:36.1]} 41. Qf4 {[%clk 0:01:37.4]} 41... Qh2+
{[%clk 0:00:35.5]} 42. Kg4 {[%clk 0:01:38.7]} 42... Rf2 {[%clk 0:00:33.8]} 43.
Qxd6 {[%clk 0:01:39.1]} 43... Qh1 {[%clk 0:00:20.9]} 44. Qe5+ {[%clk 0:01:37.8]}
44... Kh7 {[%clk 0:00:19.8]} 45. Qg5 {[%clk 0:00:18.5]} 45... Qd1+ {[%clk
0:00:17.3]} 46. Kh3 {[%clk 0:00:19.6]} 46... Qf1+ {[%clk 0:00:13.8]} 47. Kg4
{[%clk 0:00:20.8]} 47... Qe2+ {[%clk 0:00:14.6]} 0-1

[Event "*** MasterClass Titled Tuesday Blitz"]
[Site "Chess.com"]
[Date "2017.08.01"]
[Round "3"]
[White "AlexanderKing"]
[Black "Big_Fishy"]
[Result "1-0"]
[WhiteElo "2450"]
[BlackElo "2246"]
[TimeControl "180+2"]
[EndTime "13:38:23 PDT"]
[Termination "AlexanderKing won by resignation"]

1. d4 {[%clk 0:03:01.9]} 1... Nf6 {[%clk 0:03:00.4]} 2. c4 {[%clk 0:03:03.1]}
2... g6 {[%clk 0:03:01.7]} 3. Nc3 {[%clk 0:03:04.5]} 3... Bg7 {[%clk 0:03:03]}
4. e4 {[%clk 0:03:05.7]} 4... d6 {[%clk 0:03:04.2]} 5. Nf3 {[%clk 0:03:07.3]}
5... O-O {[%clk 0:03:05.4]} 6. Be2 {[%clk 0:03:08.9]} 6... e5 {[%clk 0:03:06.5]}
7. O-O {[%clk 0:03:10.5]} 7... Nc6 {[%clk 0:03:07.5]} 8. d5 {[%clk 0:03:11.9]}
8... Ne7 {[%clk 0:03:08.4]} 9. Ne1 {[%clk 0:03:13.5]} 9... Ne8 {[%clk
0:03:09.1]} 10. Be3 {[%clk 0:03:14.7]} 10... f5 {[%clk 0:03:10.4]} 11. f3 {[%clk
0:03:16.4]} 11... f4 {[%clk 0:03:11.6]} 12. Bf2 {[%clk 0:03:18]} 12... g5 {[%clk
0:03:12]} 13. c5 {[%clk 0:03:19.6]} 13... Ng6 {[%clk 0:03:13]} 14. Rc1 {[%clk
0:03:13.7]} 14... Rf7 {[%clk 0:03:13.5]} 15. Nd3 {[%clk 0:03:07.3]} 15... Bf8
{[%clk 0:03:14.1]} 16. cxd6 {[%clk 0:03:07.3]} 16... Bxd6 {[%clk 0:03:14.6]} 17.
Nb5 {[%clk 0:03:08]} 17... a6 {[%clk 0:03:14.5]} 18. Nxd6 {[%clk 0:03:08]} 18...
cxd6 {[%clk 0:03:14.9]} 19. b4 {[%clk 0:03:05]} 19... h5 {[%clk 0:03:10.5]} 20.
a4 {[%clk 0:03:04.8]} 20... Nf6 {[%clk 0:03:10.1]} 21. Nb2 {[%clk 0:03:01.3]}
21... g4 {[%clk 0:03:08.9]} 22. Nc4 {[%clk 0:03:00.7]} 22... g3 {[%clk
0:03:07.4]} 23. hxg3 {[%clk 0:02:55.1]} 23... fxg3 {[%clk 0:03:08.1]} 24. Bxg3
{[%clk 0:02:56.3]} 24... h4 {[%clk 0:03:01.2]} 25. Bf2 {[%clk 0:02:55.9]} 25...
Nh5 {[%clk 0:02:54]} 26. Kh2 {[%clk 0:02:24.8]} 26... Ng3 {[%clk 0:02:37.8]} 27.
Rg1 {[%clk 0:02:02.8]} 27... Nf4 {[%clk 0:02:05.9]} 28. Bf1 {[%clk 0:01:57.3]}
28... Rh7 {[%clk 0:01:37.3]} 29. Nb6 {[%clk 0:01:49.2]} 29... Rb8 {[%clk
0:01:36.6]} 30. Qc2 {[%clk 0:01:14.8]} 30... Bd7 {[%clk 0:00:30.3]} 31. Qc7
{[%clk 0:01:08.2]} 31... Nxf1+ {[%clk 0:00:21.2]} 32. Rgxf1 {[%clk 0:01:07.5]}
32... Qxc7 {[%clk 0:00:14.8]} 33. Rxc7 {[%clk 0:01:07.1]} 33... Be8 {[%clk
0:00:15.5]} 34. Rxh7 {[%clk 0:01:04.4]} 34... Kxh7 {[%clk 0:00:16.8]} 35. Bxh4
{[%clk 0:01:02.7]} 35... Nd3 {[%clk 0:00:17.5]} 36. Rb1 {[%clk 0:00:48.7]} 36...
Bh5 {[%clk 0:00:03.5]} 37. Rb3 {[%clk 0:00:16.6]} 37... Nf4 {[%clk 0:00:03.2]}
38. g4 {[%clk 0:00:16]} 38... Bg6 {[%clk 0:00:02.8]} 39. Bg3 {[%clk 0:00:14.1]}
39... Kg7 {[%clk 0:00:03.8]} 40. Bxf4 {[%clk 0:00:11.8]} 40... exf4 {[%clk
0:00:05]} 41. Rc3 {[%clk 0:00:13.2]} 41... Kf6 {[%clk 0:00:05.5]} 42. Nd7+
{[%clk 0:00:12.6]} 42... Kg5 {[%clk 0:00:06.3]} 43. Nxb8 {[%clk 0:00:14.5]}
43... Kh4 {[%clk 0:00:06]} 44. Rc8 {[%clk 0:00:12.8]} 44... Bxe4 {[%clk
0:00:06.4]} 45. fxe4 {[%clk 0:00:12.7]} 45... Kxg4 {[%clk 0:00:08.1]} 46. Kg2
{[%clk 0:00:13.8]} 46... f3+ {[%clk 0:00:09.1]} 47. Kf2 {[%clk 0:00:15.7]} 47...
Kf4 {[%clk 0:00:10.5]} 48. Re8 {[%clk 0:00:16.6]} 48... b5 {[%clk 0:00:09.9]}
49. a5 {[%clk 0:00:18.5]} 49... Kg4 {[%clk 0:00:10.2]} 50. Rf8 {[%clk
0:00:19.4]} 50... Kg5 {[%clk 0:00:10.6]} 51. Kxf3 {[%clk 0:00:20.2]} 1-0

[Event "*** MasterClass Titled Tuesday Blitz"]
[Site "Chess.com"]
[Date "2017.08.01"]
[Round "3"]
[White "KNVB"]
[Black "moventog"]
[Result "1-0"]
[WhiteElo "2509"]
[BlackElo "2344"]
[TimeControl "180+2"]
[EndTime "13:38:53 PDT"]
[Termination "KNVB won by resignation"]

1. d4 {[%clk 0:03:01.9]} 1... d6 {[%clk 0:03:01.9]} 2. Nf3 {[%clk 0:03:03.4]}
2... Nf6 {[%clk 0:03:03.2]} 3. Bf4 {[%clk 0:03:05]} 3... g6 {[%clk 0:03:04.3]}
4. h3 {[%clk 0:03:06.5]} 4... Bg7 {[%clk 0:03:05.7]} 5. Bh2 {[%clk 0:03:07.8]}
5... O-O {[%clk 0:03:06.8]} 6. e3 {[%clk 0:03:09.5]} 6... b6 {[%clk 0:03:06.3]}
7. c3 {[%clk 0:03:11.1]} 7... Bb7 {[%clk 0:03:07.4]} 8. Nbd2 {[%clk 0:03:12.6]}
8... c5 {[%clk 0:03:08.7]} 9. a4 {[%clk 0:03:14]} 9... a6 {[%clk 0:03:09.8]} 10.
Bd3 {[%clk 0:03:14.7]} 10... Nbd7 {[%clk 0:02:28.7]} 11. O-O {[%clk 0:03:15.5]}
11... Qc7 {[%clk 0:02:28.2]} 12. Re1 {[%clk 0:03:14.9]} 12... e5 {[%clk
0:02:25.4]} 13. dxe5 {[%clk 0:03:15.8]} 13... Nxe5 {[%clk 0:02:24.7]} 14. Bxe5
{[%clk 0:03:12.5]} 14... dxe5 {[%clk 0:02:25.3]} 15. e4 {[%clk 0:03:14.2]} 15...
Nh5 {[%clk 0:02:22.8]} 16. Bf1 {[%clk 0:03:12]} 16... Rfd8 {[%clk 0:02:17]} 17.
Qc2 {[%clk 0:03:13.4]} 17... Rd7 {[%clk 0:02:15.5]} 18. Nc4 {[%clk 0:03:13.9]}
18... Rad8 {[%clk 0:02:05.8]} 19. Ne3 {[%clk 0:03:14.9]} 19... Nf4 {[%clk
0:02:03.5]} 20. g3 {[%clk 0:03:15.6]} 20... Nh5 {[%clk 0:02:00.1]} 21. Bc4
{[%clk 0:03:10.4]} 21... h6 {[%clk 0:01:56.6]} 22. Nd5 {[%clk 0:02:59.8]} 22...
Bxd5 {[%clk 0:01:51]} 23. Bxd5 {[%clk 0:03:01.7]} 23... Nf6 {[%clk 0:01:49.3]}
24. c4 {[%clk 0:03:02.9]} 24... Nh7 {[%clk 0:01:43.2]} 25. Kg2 {[%clk
0:02:54.6]} 25... a5 {[%clk 0:01:41.3]} 26. h4 {[%clk 0:02:54.8]} 26... h5
{[%clk 0:01:38.5]} 27. Nd2 {[%clk 0:02:55.6]} 27... Nf8 {[%clk 0:01:38.8]} 28.
Nf1 {[%clk 0:02:36.4]} 28... Bh6 {[%clk 0:01:33.4]} 29. Rad1 {[%clk 0:02:36.4]}
29... Rd6 {[%clk 0:01:32.6]} 30. Nh2 {[%clk 0:02:20.6]} 30... Kg7 {[%clk
0:01:19.3]} 31. Nf3 {[%clk 0:02:19.2]} 31... Qe7 {[%clk 0:01:17.8]} 32. Qb3
{[%clk 0:02:14.9]} 32... f6 {[%clk 0:01:14.9]} 33. Ng1 {[%clk 0:02:12.8]} 33...
Nd7 {[%clk 0:01:15]} 34. Ne2 {[%clk 0:02:13.3]} 34... Nb8 {[%clk 0:01:15.1]} 35.
Nc3 {[%clk 0:02:13.9]} 35... Nc6 {[%clk 0:01:10.8]} 36. Bxc6 {[%clk 0:02:14.5]}
36... Rxc6 {[%clk 0:01:12]} 37. Rxd8 {[%clk 0:02:08.7]} 37... Qxd8 {[%clk
0:01:13.9]} 38. Nd5 {[%clk 0:02:10.6]} 38... Rd6 {[%clk 0:01:12.5]} 39. Rd1
{[%clk 0:01:57]} 39... Kf7 {[%clk 0:01:11.9]} 40. Qf3 {[%clk 0:01:58.1]} 40...
Bf8 {[%clk 0:01:05.2]} 41. Rd3 {[%clk 0:01:58.5]} 41... Kg7 {[%clk 0:01:00.7]}
42. Qd1 {[%clk 0:01:55.7]} 42... Qe8 {[%clk 0:00:57.2]} 43. g4 {[%clk
0:01:52.1]} 43... hxg4 {[%clk 0:00:53.8]} 44. Qxg4 {[%clk 0:01:54]} 44... Qe6
{[%clk 0:00:54.6]} 45. Qd1 {[%clk 0:01:33.9]} 45... Be7 {[%clk 0:00:47.2]} 46.
h5 {[%clk 0:01:13.7]} 46... g5 {[%clk 0:00:42.6]} 47. h6+ {[%clk 0:01:13]} 47...
Kh7 {[%clk 0:00:27.7]} 48. Qh5 {[%clk 0:01:14]} 48... Rd8 {[%clk 0:00:24.2]} 49.
Kg3 {[%clk 0:00:31.2]} 49... Rf8 {[%clk 0:00:24.6]} 50. Ne3 {[%clk 0:00:30.6]}
50... Rd8 {[%clk 0:00:23.3]} 51. Rd5 {[%clk 0:00:28.7]} 51... Rxd5 {[%clk
0:00:21.2]} 52. cxd5 {[%clk 0:00:30.6]} 52... Qg8 {[%clk 0:00:21.2]} 53. Kg4
{[%clk 0:00:25.6]} 53... Qg6 {[%clk 0:00:21.5]} 54. Qxg6+ {[%clk 0:00:25.4]}
54... Kxg6 {[%clk 0:00:22.9]} 55. h7 {[%clk 0:00:26.4]} 55... Kxh7 {[%clk
0:00:23]} 56. Kf5 {[%clk 0:00:28]} 56... Kg7 {[%clk 0:00:23.8]} 57. Ke6 {[%clk
0:00:29.3]} 57... Kf8 {[%clk 0:00:25]} 58. Nf5 {[%clk 0:00:29.3]} 58... Bd8
{[%clk 0:00:24]} 59. Kd7 {[%clk 0:00:30.5]} 1-0

[Event "*** MasterClass Titled Tuesday Blitz"]
[Site "Chess.com"]
[Date "2017.08.01"]
[Round "3"]
[White "dretch"]
[Black "GrigorGrigorov"]
[Result "1/2-1/2"]
[WhiteElo "2518"]
[BlackElo "2612"]
[TimeControl "180+2"]
[EndTime "13:38:59 PDT"]
[Termination "Game drawn by repetition"]

1. d4 {[%clk 0:03:02]} 1... d5 {[%clk 0:03:00.4]} 2. c4 {[%clk 0:03:03]} 2... e6
{[%clk 0:03:01.5]} 3. Nc3 {[%clk 0:03:04]} 3... a6 {[%clk 0:03:02.6]} 4. cxd5
{[%clk 0:03:03.5]} 4... exd5 {[%clk 0:03:03.3]} 5. Bf4 {[%clk 0:03:05.1]} 5...
c6 {[%clk 0:03:03.2]} 6. e3 {[%clk 0:03:05.1]} 6... Bd6 {[%clk 0:03:03.8]} 7.
Bxd6 {[%clk 0:03:05.7]} 7... Qxd6 {[%clk 0:03:04.7]} 8. Bd3 {[%clk 0:03:07]}
8... Ne7 {[%clk 0:03:04.4]} 9. Nf3 {[%clk 0:03:06.2]} 9... Bf5 {[%clk
0:02:59.2]} 10. Bxf5 {[%clk 0:03:04.6]} 10... Nxf5 {[%clk 0:02:59.6]} 11. O-O
{[%clk 0:03:05.4]} 11... O-O {[%clk 0:02:59.6]} 12. e4 {[%clk 0:03:05.2]} 12...
dxe4 {[%clk 0:02:59]} 13. Nxe4 {[%clk 0:03:07.2]} 13... Qd5 {[%clk 0:02:44.8]}
14. Nc3 {[%clk 0:03:03.7]} 14... Qd8 {[%clk 0:02:20.7]} 15. Qb3 {[%clk
0:02:56.7]} 15... Nd6 {[%clk 0:02:21.3]} 16. d5 {[%clk 0:02:39.6]} 16... c5
{[%clk 0:02:19.9]} 17. Ne5 {[%clk 0:02:27.9]} 17... Nd7 {[%clk 0:02:18.6]} 18.
Nxd7 {[%clk 0:02:29.1]} 18... Qxd7 {[%clk 0:02:19]} 19. Na4 {[%clk 0:02:30.2]}
19... Qc7 {[%clk 0:02:11.8]} 20. Qb6 {[%clk 0:02:23.4]} 20... Qxb6 {[%clk
0:02:06.3]} 21. Nxb6 {[%clk 0:02:25.4]} 21... Rad8 {[%clk 0:02:06.9]} 22. Rac1
{[%clk 0:02:25.2]} 22... Nc8 {[%clk 0:02:02.5]} 23. Na4 {[%clk 0:01:51.8]} 23...
b6 {[%clk 0:01:50]} 24. Rfd1 {[%clk 0:01:52.5]} 24... Rd6 {[%clk 0:01:49.3]} 25.
Rd2 {[%clk 0:01:50.6]} 25... Rfd8 {[%clk 0:01:49.5]} 26. Rcd1 {[%clk 0:01:44]}
26... Ne7 {[%clk 0:01:49.1]} 27. Nc3 {[%clk 0:01:44.5]} 27... Kf8 {[%clk
0:01:34.7]} 28. Kf1 {[%clk 0:01:41.3]} 28... f5 {[%clk 0:01:28.4]} 29. a4 {[%clk
0:01:40.7]} 29... Kf7 {[%clk 0:01:27.6]} 30. h3 {[%clk 0:01:39.1]} 30... Kf6
{[%clk 0:01:26.5]} 31. g4 {[%clk 0:01:39.7]} 31... g6 {[%clk 0:01:22.8]} 32. Kg2
{[%clk 0:01:39.4]} 32... b5 {[%clk 0:01:21.5]} 33. axb5 {[%clk 0:01:34.3]} 33...
axb5 {[%clk 0:01:23.4]} 34. Kf3 {[%clk 0:01:28.4]} 34... b4 {[%clk 0:01:18.8]}
35. Na4 {[%clk 0:01:29.6]} 35... c4 {[%clk 0:01:16.6]} 36. Rc1 {[%clk
0:01:29.5]} 36... Rxd5 {[%clk 0:01:11.8]} 37. Rxd5 {[%clk 0:01:30.3]} 37... Rxd5
{[%clk 0:01:12.9]} 38. Rxc4 {[%clk 0:01:30.4]} 38... Rd3+ {[%clk 0:01:13]} 39.
Kg2 {[%clk 0:01:31.4]} 39... Nd5 {[%clk 0:01:10.7]} 40. Nb6 {[%clk 0:00:47.5]}
40... Nxb6 {[%clk 0:01:00.8]} 41. Rc6+ {[%clk 0:00:48.6]} 41... Kg5 {[%clk
0:01:01.9]} 42. Rxb6 {[%clk 0:00:48.5]} 42... b3 {[%clk 0:01:02.9]} 43. gxf5
{[%clk 0:00:36]} 43... Kxf5 {[%clk 0:00:59.1]} 44. Rb5+ {[%clk 0:00:33.1]} 44...
Ke4 {[%clk 0:00:50.6]} 45. h4 {[%clk 0:00:31.4]} 45... Kf4 {[%clk 0:00:45.8]}
46. Rb4+ {[%clk 0:00:29.5]} 46... Kf5 {[%clk 0:00:45.9]} 47. Rb5+ {[%clk
0:00:29.6]} 47... Kg4 {[%clk 0:00:38.6]} 48. Rb7 {[%clk 0:00:25.7]} 48... h5
{[%clk 0:00:35.1]} 49. Rb4+ {[%clk 0:00:26.4]} 49... Kf5 {[%clk 0:00:35.8]} 50.
Rb5+ {[%clk 0:00:27.2]} 50... Ke4 {[%clk 0:00:33.2]} 51. Rb6 {[%clk 0:00:23.4]}
51... Kf5 {[%clk 0:00:30.6]} 52. Rb5+ {[%clk 0:00:24.3]} 52... Kf6 {[%clk
0:00:31]} 53. Rb6+ {[%clk 0:00:24.8]} 53... Kg7 {[%clk 0:00:31.6]} 54. Rb4
{[%clk 0:00:22.6]} 54... Kf7 {[%clk 0:00:24.9]} 55. Rb6 {[%clk 0:00:22.1]} 55...
Kg7 {[%clk 0:00:22.3]} 56. Rb4 {[%clk 0:00:22.2]} 56... Kf6 {[%clk 0:00:23]} 57.
Rb5 {[%clk 0:00:23]} 57... Ke6 {[%clk 0:00:22.3]} 58. Rb6+ {[%clk 0:00:22.7]}
58... Kf5 {[%clk 0:00:23.4]} 59. Rb5+ {[%clk 0:00:23.9]} 59... Kf6 {[%clk
0:00:21.8]} 60. Rb6+ {[%clk 0:00:24.8]} 60... Kg7 {[%clk 0:00:23.1]} 61. Rb5
{[%clk 0:00:25.4]} 61... Kf6 {[%clk 0:00:23.6]} 1/2-1/2

[Event "*** MasterClass Titled Tuesday Blitz"]
[Site "Chess.com"]
[Date "2017.08.01"]
[Round "3"]
[White "MateusViageiro"]
[Black "dmjjmd"]
[Result "1/2-1/2"]
[WhiteElo "2306"]
[BlackElo "2156"]
[TimeControl "180+2"]
[EndTime "13:39:01 PDT"]
[Termination "Game drawn by agreement"]

1. e4 {[%clk 0:03:01.9]} 1... e5 {[%clk 0:03:01]} 2. Nf3 {[%clk 0:03:02.8]} 2...
Nc6 {[%clk 0:03:02.6]} 3. Bb5 {[%clk 0:03:04.2]} 3... a6 {[%clk 0:03:04]} 4. Ba4
{[%clk 0:03:05.6]} 4... Nf6 {[%clk 0:03:05.1]} 5. Bxc6 {[%clk 0:03:06.3]} 5...
dxc6 {[%clk 0:03:04.7]} 6. d3 {[%clk 0:03:07.1]} 6... Bg4 {[%clk 0:03:03.7]} 7.
h3 {[%clk 0:03:06.9]} 7... Bxf3 {[%clk 0:02:51.4]} 8. Qxf3 {[%clk 0:03:06.5]}
8... Bd6 {[%clk 0:02:53.1]} 9. Nd2 {[%clk 0:03:06.9]} 9... Qe7 {[%clk
0:02:53.6]} 10. Nc4 {[%clk 0:03:07.7]} 10... Nd7 {[%clk 0:02:54]} 11. Bd2 {[%clk
0:03:06.9]} 11... c5 {[%clk 0:02:53]} 12. Ne3 {[%clk 0:03:07.4]} 12... f6 {[%clk
0:02:39.3]} 13. Nf5 {[%clk 0:03:06.1]} 13... Qf7 {[%clk 0:02:39.1]} 14. b3
{[%clk 0:02:57.2]} 14... Nf8 {[%clk 0:02:39.8]} 15. Qg3 {[%clk 0:02:53.8]} 15...
Ne6 {[%clk 0:02:37.1]} 16. h4 {[%clk 0:02:45.3]} 16... O-O-O {[%clk 0:02:31.6]}
17. O-O-O {[%clk 0:02:41.3]} 17... c4 {[%clk 0:02:23.5]} 18. dxc4 {[%clk
0:02:38.2]} 18... Ba3+ {[%clk 0:02:23.4]} 19. Kb1 {[%clk 0:02:35.7]} 19... Rd7
{[%clk 0:02:13.8]} 20. Be3 {[%clk 0:02:32.7]} 20... Rhd8 {[%clk 0:02:09.7]} 21.
Rd5 {[%clk 0:02:31.2]} 21... c6 {[%clk 0:02:07]} 22. Rxd7 {[%clk 0:02:29.3]}
22... Qxd7 {[%clk 0:02:08.6]} 23. Qf3 {[%clk 0:02:26.2]} 23... g6 {[%clk
0:01:51.5]} 24. Ng3 {[%clk 0:02:17.9]} 24... Nd4 {[%clk 0:01:50.6]} 25. Qd1
{[%clk 0:02:17.9]} 25... Kb8 {[%clk 0:01:43.8]} 26. c3 {[%clk 0:02:11.3]} 26...
Ne6 {[%clk 0:01:22.3]} 27. Qxd7 {[%clk 0:02:10.9]} 27... Rxd7 {[%clk 0:01:24.2]}
28. Kc2 {[%clk 0:02:07.2]} 28... Be7 {[%clk 0:01:21.7]} 29. h5 {[%clk 0:02:07]}
29... Kc7 {[%clk 0:01:18.3]} 30. hxg6 {[%clk 0:02:07.8]} 30... hxg6 {[%clk
0:01:18.8]} 31. Rh6 {[%clk 0:02:08.4]} 31... Nf8 {[%clk 0:01:18.9]} 32. Rh8
{[%clk 0:02:04.5]} 32... Rd8 {[%clk 0:01:16.4]} 33. Ne2 {[%clk 0:02:01.6]} 33...
Ne6 {[%clk 0:01:15.5]} 34. Rh7 {[%clk 0:01:56.2]} 34... Rd7 {[%clk 0:01:13.2]}
35. g3 {[%clk 0:01:56.5]} 35... Bc5 {[%clk 0:01:09.8]} 36. Rxd7+ {[%clk
0:01:54.4]} 36... Kxd7 {[%clk 0:01:09.8]} 37. Kd3 {[%clk 0:01:54.2]} 37... Bxe3
{[%clk 0:00:53.2]} 38. Kxe3 {[%clk 0:01:54.5]} 38... Nc5 {[%clk 0:00:48.6]} 39.
f4 {[%clk 0:01:53.8]} 39... Ke6 {[%clk 0:00:48.8]} 40. Ng1 {[%clk 0:01:51.5]}
40... Nd7 {[%clk 0:00:46.9]} 41. Nf3 {[%clk 0:01:51.4]} 41... Nc5 {[%clk
0:00:44.4]} 42. Ne1 {[%clk 0:01:45.4]} 42... b6 {[%clk 0:00:40.4]} 43. Nd3
{[%clk 0:01:42.5]} 43... Nxd3 {[%clk 0:00:32.4]} 44. Kxd3 {[%clk 0:01:42.9]}
44... c5 {[%clk 0:00:30.6]} 45. Ke3 {[%clk 0:01:34.5]} 45... Kd6 {[%clk
0:00:27.2]} 46. b4 {[%clk 0:01:25.5]} 46... Ke6 {[%clk 0:00:27.1]} 47. a3 {[%clk
0:01:21.2]} 47... exf4+ {[%clk 0:00:14.7]} 48. Kxf4 {[%clk 0:01:20.5]} 48... g5+
{[%clk 0:00:16.4]} 49. Kf3 {[%clk 0:01:19.9]} 49... Ke5 {[%clk 0:00:18.3]} 50.
Ke3 {[%clk 0:01:17.6]} 50... g4 {[%clk 0:00:13.4]} 51. Kd3 {[%clk 0:01:17.3]}
51... Ke6 {[%clk 0:00:14.3]} 52. Kd2 {[%clk 0:01:17.2]} 52... Ke5 {[%clk
0:00:15.7]} 53. Ke3 {[%clk 0:01:17.8]} 53... f5 {[%clk 0:00:16.7]} 54. exf5
{[%clk 0:01:17.4]} 54... Kxf5 {[%clk 0:00:18.6]} 55. Kd3 {[%clk 0:01:18.2]}
55... Ke5 {[%clk 0:00:19.4]} 56. Kd2 {[%clk 0:01:16]} 56... Ke4 {[%clk
0:00:20.5]} 57. Ke2 {[%clk 0:01:16.8]} 57... Ke5 {[%clk 0:00:21.6]} 58. Ke3
{[%clk 0:01:17.6]} 58... Kf5 {[%clk 0:00:22.8]} 59. a4 {[%clk 0:01:16.4]} 59...
a5 {[%clk 0:00:23]} 60. Kd3 {[%clk 0:01:12.2]} 60... Ke5 {[%clk 0:00:23.7]} 61.
b5 {[%clk 0:01:00.1]} 61... Kf5 {[%clk 0:00:22.9]} 62. Kd2 {[%clk 0:00:59.7]}
62... Ke4 {[%clk 0:00:23.5]} 63. Ke2 {[%clk 0:01:00.7]} 63... Ke5 {[%clk
0:00:24.6]} 64. Ke3 {[%clk 0:01:01.5]} 64... Kf5 {[%clk 0:00:25.7]} 1/2-1/2